bitfinex/quotes_BTCUSD_20241229
["timestamp","ask_amount","ask_price","bid_price","bid_amount"]
[1735488257656,0.985224,94678.0,94669.0,0.12483539]
[1735488257855,1.036913,94677.0,94669.0,0.12483539]
[1735488258093,0.01657071,94680.0,94669.0,0.047]
[1735488258094,1.12637629,94676.0,94669.0,0.047]
[1735488258295,1.739386,94675.0,94669.0,0.047]
[1735488258498,1.166474,94674.0,94669.0,0.047]
[1735488258702,1.166474,94674.0,94667.0,0.00017267]
[1735488258703,1.027432,94673.0,94667.0,0.00017267]
[1735488258908,1.504295,94672.0,94667.0,0.00017267]
[1735488259251,1.46808,94671.0,94669.0,0.001]
[1735488259456,1.441404,94670.0,94667.0,0.00017267]
[1735488259749,1.065111,94669.0,94667.0,0.00017267]
[1735488259942,0.0094656,94672.0,94667.0,0.00017267]
[1735488260076,0.01657247,94670.0,94667.0,0.00017267]
[1735488260291,1.062606,94669.0,94667.0,0.00317267]
[1735488261573,1.062606,94669.0,94667.0,0.00417267]
[1735488261730,1.062606,94669.0,94667.0,0.00117267]
[1735488261926,1.062606,94669.0,94667.0,0.00517267]
[1735488262286,1.062606,94669.0,94667.0,0.00417267]
[1735488262482,1.062606,94669.0,94667.0,0.00517267]
[1735488264024,1.501024,94671.0,94667.0,0.00517267]
[1735488264495,1.063926,94671.0,94667.0,0.00517267]
[1735488264672,1.374128,94671.0,94667.0,0.00517267]
[1735488264905,1.286598,94671.0,94667.0,0.00117267]
[1735488265107,1.286598,94671.0,94667.0,0.00017267]
[1735488265280,0.01979324,94670.0,94667.0,0.00417267]
[1735488265527,1.67458834,94669.0,94667.0,0.00417267]
[1735488265740,3.459415,94668.0,94650.0,0.08277208]
[1735488265947,3.2485744,94667.0,94650.0,0.08277208]
[1735488266154,0.0779,94665.0,94650.0,0.00507064]
[1735488266352,3.1035951,94664.0,94650.0,0.00507064]
[1735488266573,2.514279,94663.0,94650.0,0.00507064]
[1735488266711,0.0721849,94662.0,94650.0,0.00507064]
[1735488266917,2.358252,94661.0,94650.0,0.00507064]
[1735488267111,0.07224071,94660.0,94650.0,0.00507064]
[1735488267339,2.045273,94659.0,94650.0,0.00507064]
[1735488267532,0.07229652,94658.0,94650.0,0.00507064]
[1735488267738,1.81737,94657.0,94650.0,0.00507064]
[1735488267965,0.07235232,94656.0,94650.0,0.00507064]
[1735488268132,1.91720732,94656.0,94650.0,0.00507064]
[1735488268338,1.624971,94655.0,94650.0,0.00507064]
[1735488268517,0.07240813,94654.0,94650.0,0.00507064]
[1735488268723,1.21342,94653.0,94650.0,0.00507064]
[1735488269119,1.017076,94653.0,94650.0,0.00507064]
[1735488269342,1.017195,94653.0,94650.0,0.00707064]
[1735488269543,1.017195,94653.0,94650.0,0.00507064]
[1735488270073,1.017195,94653.0,94650.0,0.00807064]
[1735488270241,0.882448,94652.0,94650.0,0.00807064]
[1735488270500,0.702392,94651.0,94650.0,0.00807064]
[1735488270642,0.671345,94651.0,94650.0,0.00807064]
[1735488271099,0.895642,94653.0,94650.0,0.00907064]
[1735488271291,0.576041,94652.0,94650.0,0.00907064]
[1735488271491,0.705461,94653.0,94650.0,0.00807064]
[1735488271700,0.736918,94653.0,94650.0,0.00907064]
[1735488272078,0.01090028,94652.0,94650.0,0.00607064]
[1735488272271,0.662679,94651.0,94650.0,0.00507064]
[1735488272492,0.643506,94651.0,94650.0,0.00907064]
[1735488272848,0.01090028,94651.0,94650.0,0.00607064]
[1735488273089,0.01090028,94651.0,94650.0,0.00907064]
[1735488273288,0.99564328,94651.0,94650.0,0.00607064]
[1735488273432,0.69019828,94651.0,94650.0,0.00607064]
[1735488273600,0.69019828,94651.0,94650.0,0.01007064]
[1735488273801,0.69019828,94651.0,94650.0,0.00607064]
[1735488273996,0.69019828,94651.0,94650.0,0.00507064]
[1735488274246,0.67984528,94651.0,94650.0,0.00507064]
[1735488274449,0.67984528,94651.0,94650.0,0.00615604]
[1735488274865,0.67984528,94651.0,94650.0,0.00515604]
[1735488275023,0.66511825,94651.0,94650.0,0.00515604]
[1735488275252,0.64283025,94651.0,94650.0,0.01015604]
[1735488275631,0.44888325,94651.0,94650.0,0.01015604]
[1735488276030,0.21146325,94651.0,94650.0,0.01015604]
[1735488276220,0.199661,94651.0,94650.0,0.01015604]
[1735488276423,1.573766,94657.0,94650.0,0.01015604]
[1735488276639,0.14171735,94661.0,94652.0,0.07783539]
[1735488276857,0.265587,94660.0,94654.0,0.07783539]
[1735488277258,0.01657367,94659.0,94654.0,0.07783539]
[1735488277463,0.01657367,94659.0,94655.0,0.07783539]
[1735488277660,0.01657367,94659.0,94658.0,0.07783539]
[1735488278020,0.01657367,94659.0,94658.0,0.12673539]
[1735488279210,0.12624567,94659.0,94658.0,0.13173539]
[1735488280021,0.12661074,94659.0,94658.0,0.13173539]
[1735488280542,0.12661074,94659.0,94658.0,0.13373539]
[1735488280784,0.00707373,94662.0,94658.0,0.13373539]
[1735488280919,0.01657287,94659.0,94658.0,0.13373539]
[1735488281126,2.03330087,94659.0,94658.0,0.13373539]
[1735488281320,2.04473687,94659.0,94658.0,0.13373539]
[1735488283995,2.028164,94659.0,94658.0,0.007]
[1735488284147,3.349743,94662.0,94658.0,0.007]
[1735488285134,3.349743,94662.0,94650.0,0.08299143]
[1735488285382,3.349743,94662.0,94658.0,0.001]
[1735488285763,0.18917064,94659.0,94658.0,0.001]
[1735488286187,3.33017464,94659.0,94658.0,0.001]
[1735488286368,3.35165964,94659.0,94658.0,0.001]
[1735488286572,3.35165964,94659.0,94658.0,0.005]
[1735488286783,3.16266,94659.0,94658.0,0.004]
[1735488287045,1.437057,94659.0,94658.0,0.004]
[1735488287335,0.62230498,94659.0,94658.0,0.004]
[1735488287479,0.49486598,94659.0,94658.0,0.004]
[1735488287679,0.73214143,94659.0,94658.0,0.004]
[1735488287879,0.61181943,94659.0,94658.0,0.004]
[1735488288109,0.61181943,94659.0,94658.0,0.006]
[1735488288718,0.61181943,94659.0,94658.0,0.002]
[1735488289071,0.37454398,94659.0,94658.0,0.007]
[1735488291245,0.25896598,94659.0,94658.0,0.007]
[1735488291852,0.21496398,94659.0,94658.0,0.083]
[1735488292057,0.01674398,94659.0,94658.0,0.083]
[1735488292285,0.70195498,94659.0,94658.0,0.083]
[1735488292584,0.67945398,94659.0,94658.0,0.083]
[1735488293820,0.662881,94659.0,94658.0,0.083]
[1735488294450,0.642318,94659.0,94658.0,0.083]
[1735488294618,0.482774,94659.0,94658.0,0.083]
[1735488295164,0.430434,94659.0,94658.0,0.083]
[1735488296515,0.279119,94659.0,94658.0,0.083]
[1735488297049,0.29569214,94659.0,94658.0,0.083]
[1735488297949,0.29569214,94659.0,94658.0,0.0830854]
[1735488300686,0.29569214,94659.0,94658.0,0.0070854]
[1735488303833,0.279119,94659.0,94658.0,0.0070854]
[1735488304775,0.27947719,94659.0,94658.0,0.0070854]
[1735488305306,0.35155049,94659.0,94658.0,0.0070854]
[1735488306061,0.07260249,94659.0,94658.0,1.829e-05]
[1735488306258,2.42667449,94659.0,94658.0,1.829e-05]
[1735488306496,2.21462049,94659.0,94658.0,1.829e-05]
[1735488306696,2.23441373,94659.0,94658.0,1.829e-05]
[1735488306845,2.2345027,94659.0,94658.0,1.829e-05]
[1735488307046,2.25107736,94659.0,94658.0,1.829e-05]
[1735488307399,2.23119515,94659.0,94658.0,1.829e-05]
[1735488307604,2.23219515,94659.0,94658.0,1.829e-05]
[1735488308176,1.99219615,94659.0,94658.0,1.829e-05]
[1735488308992,1.72250166,94659.0,94658.0,1.829e-05]
[1735488309197,0.68473066,94659.0,94658.0,1.829e-05]
[1735488309615,0.68473066,94659.0,94622.0,0.07783539]
[1735488309616,0.1,94655.0,94622.0,0.07783539]
[1735488309806,0.02216461,94650.0,94643.0,5.348e-05]
[1735488310019,0.0796,94648.0,94643.0,5.348e-05]
[1735488310234,3.11796882,94647.0,94643.0,5.348e-05]
[1735488310449,0.0796,94645.0,94615.0,0.03140029]
[1735488310651,2.95976614,94644.0,94615.0,0.03190787]
[1735488310886,2.68628,94643.0,94620.0,0.07783539]
[1735488311184,0.07358039,94642.0,94615.0,0.03190787]
[1735488311389,3.03334357,94642.0,94633.0,8.54e-05]
[1735488311616,3.100779,94641.0,94633.0,8.54e-05]
[1735488311827,0.54127361,94640.0,94633.0,8.54e-05]
[1735488312032,3.51482567,94640.0,94633.0,8.54e-05]
[1735488312207,2.817037,94639.0,94633.0,8.54e-05]
[1735488312411,2.77270803,94638.0,94633.0,8.54e-05]
[1735488312684,2.93792287,94637.0,94615.0,0.00150758]
[1735488312997,2.89877037,94636.0,94615.0,0.0008078]
[1735488313250,2.948155,94635.0,94615.0,0.0008078]
[1735488313461,3.35011121,94634.0,94608.0,0.0785]
[1735488313673,3.047829,94633.0,94608.0,0.07855357]
[1735488313886,0.32055934,94622.0,94608.0,0.07855357]
[1735488314104,1.175888,94621.0,94614.0,0.07783539]
[1735488314335,0.904568,94620.0,94614.0,0.07783539]
[1735488314571,0.751908,94621.0,94614.0,0.07783539]
[1735488314779,0.514079,94620.0,94615.0,0.001]
[1735488314983,0.28478072,94617.0,94615.0,0.001]
[1735488315183,0.28478072,94617.0,94616.0,0.0785]
[1735488315369,0.28478072,94617.0,94616.0,0.20193539]
[1735488315797,0.28478072,94626.0,94616.0,0.20193539]
[1735488316027,0.373068,94625.0,94616.0,0.20193539]
[1735488316232,0.373068,94625.0,94619.0,0.07783539]
[1735488317313,0.28478072,94626.0,94625.0,0.15633539]
[1735488317522,0.28478072,94626.0,94625.0,0.20193539]
[1735488317728,0.28478072,94626.0,94625.0,0.20093539]
[1735488318553,0.30135879,94626.0,94625.0,0.20093539]
[1735488318763,0.01757807,94626.0,94625.0,0.20493539]
[1735488319109,0.01757807,94626.0,94625.0,0.20093539]
[1735488319559,0.01757807,94626.0,94625.0,0.20493539]
[1735488320026,0.25481338,94626.0,94625.0,0.20493539]
[1735488320538,0.25381338,94626.0,94625.0,0.20493539]
[1735488320790,0.01757807,94626.0,94625.0,0.20693539]
[1735488321285,0.12182507,94626.0,94625.0,0.20693539]
[1735488321519,0.01757807,94626.0,94625.0,0.20693539]
[1735488321766,0.33708107,94626.0,94625.0,0.20357548]
[1735488321991,0.34677707,94626.0,94625.0,0.07947548]
[1735488322202,0.38529651,94626.0,94625.0,0.006]
[1735488322422,0.38529651,94626.0,94625.0,0.00158324]
[1735488323291,0.38629651,94626.0,94625.0,0.00158324]
[1735488323495,0.38646731,94626.0,94625.0,0.00158324]
[1735488323875,0.36988924,94626.0,94625.0,0.00158324]
[1735488324110,0.36988924,94626.0,94619.0,8.54e-05]
[1735488324313,2.02997282,94625.0,94619.0,8.54e-05]
[1735488324523,1.857621,94624.0,94619.0,8.54e-05]
[1735488324728,1.78798266,94623.0,94619.0,8.54e-05]
[1735488324934,1.752352,94622.0,94619.0,8.54e-05]
[1735488325164,1.21052,94621.0,94619.0,8.54e-05]
[1735488325598,1.044996,94621.0,94619.0,8.54e-05]
[1735488325844,0.721074,94620.0,94619.0,8.54e-05]
[1735488326093,0.001,94624.0,94619.0,8.54e-05]
[1735488326094,1.247821,94623.0,94619.0,8.54e-05]
[1735488326501,1.02814024,94622.0,94619.0,8.54e-05]
[1735488326699,1.9148175,94621.0,94619.0,8.54e-05]
[1735488327025,2.54050524,94620.0,94619.0,8.54e-05]
[1735488327208,2.54050524,94620.0,94580.0,0.00105705]
[1735488327209,0.0768,94597.0,94566.0,0.07347548]
[1735488327463,0.03087086,94587.0,94558.0,0.06912914]
[1735488327668,3.359343,94596.0,94558.0,0.06912914]
[1735488327669,3.15530329,94586.0,94563.0,0.00015233]
[1735488327875,2.295936,94585.0,94563.0,0.00015233]
[1735488328092,0.07203552,94578.0,94563.0,0.00015233]
[1735488328310,0.04136033,94566.0,94563.0,0.00015233]
[1735488328519,0.03087086,94552.0,94538.0,8.54e-05]
[1735488328720,3.432143,94565.0,94548.0,0.00015202]
[1735488328721,3.39250135,94551.0,94548.0,0.00015202]
[1735488328923,3.349743,94550.0,94548.0,0.00015202]
[1735488329127,1.951523,94550.0,94538.0,0.06921454]
[1735488329332,1.951523,94550.0,94538.0,8.54e-05]
[1735488329333,0.74189632,94549.0,94538.0,8.54e-05]
[1735488329544,2.857478,94548.0,94538.0,8.54e-05]
[1735488329749,0.07573894,94547.0,94538.0,8.54e-05]
[1735488329959,2.745677,94546.0,94538.0,8.54e-05]
[1735488330169,0.07579484,94545.0,94538.0,8.54e-05]
[1735488330383,2.965483,94544.0,94538.0,8.54e-05]
[1735488330587,0.07585078,94543.0,94538.0,8.54e-05]
[1735488330792,3.145446,94542.0,94538.0,8.54e-05]
[1735488330922,0.04303804,94541.0,94538.0,8.54e-05]
[1735488331127,2.78364271,94541.0,94538.0,8.54e-05]
[1735488331339,3.17189717,94540.0,94538.0,8.54e-05]
[1735488331540,3.23094483,94540.0,94538.0,2.9e-06]
[1735488331736,3.19059762,94539.0,94538.0,2.9e-06]
[1735488332115,3.08439262,94539.0,94538.0,2.9e-06]
[1735488332314,0.44026957,94539.0,94538.0,2.9e-06]
[1735488332536,0.39429413,94539.0,94538.0,2.9e-06]
[1735488332981,0.39429413,94539.0,94538.0,0.17311836]
[1735488332982,0.01659657,94539.0,94538.0,0.17311836]
[1735488333182,0.82643448,94540.0,94539.0,0.06694161]
[1735488333404,0.82643448,94540.0,94539.0,0.27092793]
[1735488333576,0.82643448,94540.0,94539.0,0.39212793]
[1735488334333,0.23532381,94540.0,94539.0,0.39212793]
[1735488334505,0.23532381,94540.0,94539.0,0.32199552]
[1735488334718,0.18532381,94540.0,94539.0,0.35419536]
[1735488335013,0.05722381,94540.0,94539.0,0.45419536]
[1735488335172,0.05822381,94540.0,94539.0,0.45419536]
[1735488335375,0.05722381,94540.0,94539.0,0.45419536]
[1735488335550,0.31768715,94557.0,94539.0,0.45419536]
[1735488335551,0.09406293,94554.0,94550.0,0.1]
[1735488335758,0.09406293,94554.0,94551.0,0.10298632]
[1735488335962,0.09406293,94554.0,94539.0,0.25339984]
[1735488335963,0.09406293,94554.0,94552.0,0.10398632]
[1735488336166,0.11065239,94554.0,94552.0,0.10398632]
[1735488337214,0.01658946,94554.0,94552.0,0.10398632]
[1735488337610,0.01758946,94554.0,94552.0,0.10398632]
[1735488337835,0.01658946,94554.0,94552.0,0.10398632]
[1735488338251,0.01758946,94554.0,94552.0,0.10398632]
[1735488338408,0.01658946,94554.0,94552.0,0.10398632]
[1735488338809,0.01858946,94554.0,94552.0,0.10798632]
[1735488339019,0.01758946,94554.0,94552.0,0.10904376]
[1735488339222,0.01758946,94554.0,94552.0,0.10798632]
[1735488339421,0.01658946,94554.0,94552.0,0.10398632]
[1735488339640,0.01758946,94554.0,94552.0,0.10798632]
[1735488341041,0.01758946,94554.0,94552.0,0.11198632]
[1735488341387,0.01758946,94554.0,94552.0,0.10998632]
[1735488341723,0.01858946,94554.0,94552.0,0.11798632]
[1735488343066,0.01858946,94554.0,94553.0,0.00105733]
[1735488343269,0.01858946,94554.0,94553.0,0.10504365]
[1735488343872,0.002,94554.0,94553.0,0.10504365]
[1735488344305,0.001,94554.0,94553.0,0.10504365]
[1735488344640,0.001,94554.0,94553.0,0.11204365]
[1735488345042,0.002,94554.0,94553.0,0.11804365]
[1735488345445,0.001,94554.0,94553.0,0.11104365]
[1735488345663,0.002,94554.0,94553.0,0.11904365]
[1735488346079,0.001,94554.0,94553.0,0.11104365]
[1735488347152,0.01758803,94554.0,94553.0,0.11104365]
[1735488348135,0.01775903,94554.0,94553.0,0.11104365]
[1735488349041,0.01875903,94554.0,94553.0,0.11804365]
[1735488349640,0.01875903,94554.0,94553.0,0.11698632]
[1735488353949,0.002171,94554.0,94553.0,0.11698632]
[1735488357217,0.0187593,94554.0,94553.0,0.11698632]
[1735488358114,0.1410944,94572.0,94553.0,0.11698632]
[1735488358115,0.02100746,94572.0,94553.0,0.12868495]
[1735488358315,0.00015143,94569.0,94554.0,0.10504366]
[1735488358492,0.09440924,94568.0,94554.0,0.10504366]
[1735488358672,0.11099805,94568.0,94554.0,0.10504366]
[1735488359858,0.11199805,94568.0,94554.0,0.11204366]
[1735488360041,0.11199805,94568.0,94555.0,0.01237423]
[1735488360240,0.11199805,94568.0,94556.0,0.10504369]
[1735488360450,0.01758881,94568.0,94556.0,0.10504369]
[1735488361428,0.01775981,94568.0,94556.0,0.10504369]
[1735488362440,0.01675981,94568.0,94556.0,0.10504369]
[1735488362778,0.01675981,94568.0,94557.0,0.02012092]
[1735488362976,0.01775981,94568.0,94558.0,0.10504358]
[1735488363182,0.01675981,94568.0,94558.0,0.10504358]
[1735488363592,0.01775981,94568.0,94558.0,0.10504358]
[1735488363831,0.000171,94568.0,94558.0,0.10504358]
[1735488364003,0.000171,94568.0,94559.0,0.10398632]
[1735488364202,0.001171,94568.0,94560.0,0.02167811]
[1735488364410,0.001171,94568.0,94561.0,0.10398632]
[1735488364708,0.001171,94568.0,94562.0,0.0010572]
[1735488364986,0.001171,94568.0,94563.0,0.10398632]
[1735488365138,0.001171,94568.0,94564.0,0.0010572]
[1735488365338,0.001171,94568.0,94565.0,0.10398632]
[1735488365556,0.001171,94568.0,94566.0,0.01156155]
[1735488365743,0.001171,94568.0,94567.0,0.10398632]
[1735488365924,0.000171,94568.0,94567.0,0.10398632]
[1735488367074,0.000171,94568.0,94567.0,0.10904345]
[1735488367397,0.000171,94568.0,94567.0,0.11698632]
[1735488370660,0.01675717,94568.0,94567.0,0.11698632]
[1735488370770,0.01675717,94568.0,94567.0,0.12868495]
[1735488370983,0.01675717,94568.0,94567.0,0.20608495]
[1735488371184,0.11150829,94568.0,94567.0,0.20608495]
[1735488372244,0.01675717,94568.0,94567.0,0.20208495]
[1735488372420,0.01675717,94568.0,94567.0,0.20608495]
[1735488372734,0.01675717,94568.0,94567.0,0.19438632]
[1735488372953,0.01675717,94568.0,94567.0,0.18138632]
[1735488373256,0.11150829,94568.0,94567.0,0.18138632]
[1735488373465,0.11250829,94568.0,94567.0,0.19538632]
[1735488373782,0.11250829,94568.0,94567.0,0.18638632]
[1735488373783,0.11150829,94568.0,94567.0,0.18638632]
[1735488373982,0.09492212,94568.0,94567.0,0.21316408]
[1735488374188,0.09492212,94568.0,94567.0,0.21916408]
[1735488374333,0.09492212,94568.0,94567.0,0.31195537]
[1735488374742,0.000171,94568.0,94567.0,0.31195537]
[1735488375339,0.000171,94568.0,94567.0,0.30595537]
[1735488375791,0.000171,94568.0,94567.0,0.31095537]
[1735488376359,0.000171,94568.0,94567.0,0.29695537]
[1735488376642,0.001171,94568.0,94567.0,0.30595537]
[1735488376891,0.001171,94568.0,94567.0,0.31295537]
[1735488376892,0.002171,94568.0,94567.0,0.31295537]
[1735488377061,0.001171,94568.0,94567.0,0.30395537]
[1735488377282,0.000171,94568.0,94567.0,0.29695537]
[1735488377686,0.001171,94568.0,94567.0,0.30595537]
[1735488377895,0.000171,94568.0,94567.0,0.29695537]
[1735488378831,0.002171,94568.0,94567.0,0.12098632]
[1735488379027,0.00251927,94568.0,94567.0,0.017]
[1735488379367,0.09727039,94568.0,94567.0,0.017]
[1735488379572,0.38154339,94568.0,94567.0,0.017]
[1735488379774,0.50387733,94568.0,94567.0,0.009]
[1735488380102,0.50387733,94568.0,94567.0,0.011]
[1735488380477,0.50287733,94568.0,94567.0,0.002]
[1735488380725,0.40812621,94568.0,94567.0,0.009]
[1735488380880,0.1086445,94568.0,94567.0,0.009]
[1735488381218,0.1086445,94568.0,94567.0,0.002]
[1735488381219,0.4271407,94568.0,94567.0,0.002]
[1735488381418,0.4271407,94568.0,94567.0,0.003]
[1735488382320,0.4271407,94568.0,94567.0,0.001]
[1735488384450,0.41055121,94568.0,94567.0,0.001]
[1735488386858,0.55885121,94568.0,94567.0,0.001]
[1735488387042,0.01620871,94557.0,94556.0,8.55e-05]
[1735488387244,2.21622294,94557.0,94556.0,8.55e-05]
[1735488387383,1.95453494,94557.0,94556.0,8.55e-05]
[1735488387590,1.97112809,94557.0,94556.0,8.55e-05]
[1735488388000,2.20531441,94557.0,94556.0,8.55e-05]
[1735488388219,0.11620871,94540.0,94539.0,8.55e-05]
[1735488388422,1.70978771,94540.0,94539.0,8.55e-05]
[1735488388620,0.35039503,94540.0,94539.0,8.55e-05]
[1735488388826,0.38580181,94540.0,94539.0,8.55e-05]
[1735488389046,0.40239764,94540.0,94539.0,8.55e-05]
[1735488389238,0.36735814,94540.0,94539.0,8.55e-05]
[1735488389847,1.05484729,94540.0,94539.0,8.55e-05]
[1735488390362,3.02680529,94540.0,94539.0,8.55e-05]
[1735488390563,3.27178129,94540.0,94539.0,8.55e-05]
[1735488390781,3.27141401,94540.0,94539.0,8.55e-05]
[1735488390987,2.61020269,94540.0,94539.0,8.55e-05]
[1735488391166,2.61320269,94540.0,94539.0,8.55e-05]
[1735488391913,2.61020269,94540.0,94539.0,8.55e-05]
[1735488392324,3.29869184,94540.0,94539.0,0.0010855]
[1735488392600,3.30169184,94540.0,94539.0,0.0010855]
[1735488393237,3.29869184,94540.0,94539.0,0.0010855]
[1735488393435,3.30269184,94540.0,94539.0,0.0010855]
[1735488393849,3.27909601,94540.0,94539.0,8.55e-05]
[1735488394052,0.11620871,94531.0,94483.0,0.08379129]
[1735488394254,2.51654203,94531.0,94486.0,0.0013451]
[1735488394455,2.7505839,94531.0,94486.0,0.0013451]
[1735488394666,2.6302349,94531.0,94486.0,0.0013451]
[1735488394882,2.4643469,94531.0,94486.0,0.0013451]
[1735488395249,2.4643469,94531.0,94486.0,0.00028703]
[1735488395456,2.5472469,94531.0,94486.0,0.00028703]
[1735488396212,0.19710871,94512.0,94486.0,0.00028703]
[1735488396387,0.1493,94493.0,94492.0,0.01364113]
[1735488396649,1.58253969,94493.0,94492.0,0.01414921]
[1735488396849,0.6213313,94493.0,94492.0,0.01414921]
[1735488397047,0.42545693,94493.0,94492.0,0.01414921]
[1735488397200,0.44167179,94493.0,94492.0,0.01414921]
[1735488397768,0.44205872,94493.0,94492.0,0.01414921]
[1735488398180,0.44305872,94493.0,94492.0,0.02014921]
[1735488398396,0.44205872,94493.0,94492.0,0.01423471]
[1735488398817,0.44205872,94493.0,94492.0,0.01523471]
[1735488399012,0.44205872,94493.0,94492.0,0.01623471]
[1735488399218,0.34205872,94493.0,94492.0,0.01623471]
[1735488399517,0.34205872,94493.0,94492.0,0.01523471]
[1735488399947,0.17738609,94493.0,94492.0,0.01523471]
[1735488400142,0.39049972,94493.0,94492.0,0.01523471]
[1735488400564,0.35256172,94493.0,94492.0,0.01423471]
[1735488400965,0.35256172,94493.0,94492.0,0.01723471]
[1735488400966,0.01698872,94493.0,94492.0,0.01723471]
[1735488401189,0.01660179,94493.0,94492.0,0.01723471]
[1735488401587,0.01699437,94493.0,94492.0,0.01723471]
[1735488402147,0.01660179,94493.0,94492.0,0.01723471]
[1735488402359,0.01660179,94493.0,94492.0,0.01423471]
[1735488402962,0.01660179,94493.0,94492.0,0.01623471]
[1735488403364,0.01660179,94493.0,94492.0,0.01423471]
[1735488403802,0.001,94493.0,94492.0,0.02223471]
[1735488404019,0.001,94493.0,94492.0,0.01823471]
[1735488404339,0.001,94493.0,94492.0,0.13122103]
[1735488404340,0.002,94493.0,94492.0,0.13122103]
[1735488405401,0.002,94493.0,94492.0,0.13227909]
[1735488405602,0.002,94493.0,94492.0,0.13122103]
[1735488405970,0.002,94493.0,94492.0,0.02723471]
[1735488406310,0.001,94493.0,94492.0,0.02323471]
[1735488406532,0.001,94493.0,94492.0,0.12722103]
[1735488406742,0.002,94493.0,94492.0,0.13122103]
[1735488406940,0.001,94493.0,94492.0,0.12222103]
[1735488407311,0.01759948,94493.0,94492.0,0.12722103]
[1735488407487,0.01859948,94493.0,94492.0,0.12922103]
[1735488407629,0.01759948,94493.0,94492.0,0.12022103]
[1735488408033,0.001,94493.0,94492.0,0.12022103]
[1735488408508,0.09418991,94529.0,94492.0,0.12022103]
[1735488408509,0.02818197,94531.0,94492.0,0.02523471]
[1735488408803,0.02818197,94531.0,94492.0,0.01423471]
[1735488408804,0.10398632,94526.0,94492.0,0.01423471]
[1735488409040,0.001,94493.0,94492.0,0.02023471]
[1735488409646,0.0467,94503.0,94492.0,0.01423471]
[1735488409819,0.399611,94502.0,94492.0,0.01423471]
[1735488410225,0.001,94493.0,94492.0,0.02323471]
[1735488410713,0.0467,94503.0,94492.0,0.01723471]
[1735488410946,0.000171,94493.0,94492.0,0.01823471]
[1735488411148,1.17569333,94493.0,94492.0,0.01723471]
[1735488411350,2.16636933,94493.0,94492.0,0.01723471]
[1735488411466,2.28675333,94493.0,94492.0,0.02223471]
[1735488411671,2.37092333,94493.0,94492.0,0.02223471]
[1735488411874,2.37092333,94493.0,94492.0,0.01423471]
[1735488412076,2.5033166,94493.0,94492.0,0.01423471]
[1735488412291,1.7856206,94493.0,94492.0,0.02023471]
[1735488412557,1.6177386,94493.0,94492.0,0.02023471]
[1735488412706,1.6177386,94493.0,94492.0,0.01823471]
[1735488413312,1.6177386,94493.0,94492.0,0.02023471]
[1735488413711,1.6177386,94493.0,94492.0,0.01823471]
[1735488413911,1.60113727,94493.0,94492.0,0.01823471]
[1735488415146,1.60113727,94493.0,94492.0,0.01923471]
[1735488415347,1.55913227,94493.0,94492.0,0.01923471]
[1735488416106,1.55913227,94493.0,94492.0,0.01523471]
[1735488416311,1.55913227,94493.0,94492.0,0.02023471]
[1735488416544,1.00831827,94493.0,94492.0,0.02023471]
[1735488416743,0.98585627,94493.0,94492.0,0.01523471]
[1735488416972,0.80922027,94493.0,94492.0,0.01623471]
[1735488417193,0.8258225,94493.0,94492.0,0.01623471]
[1735488418559,0.28525623,94493.0,94492.0,0.01623471]
[1735488418935,0.13872023,94493.0,94492.0,0.01623471]
[1735488420450,0.01677323,94493.0,94492.0,0.01623471]
[1735488421691,0.01677323,94493.0,94492.0,0.01523471]
[1735488421893,0.01677323,94493.0,94492.0,0.01623471]
[1735488422513,0.01677323,94493.0,94492.0,0.01523471]
[1735488422714,0.01677323,94493.0,94492.0,0.01423471]
[1735488422918,0.01677323,94493.0,94492.0,0.01923471]
[1735488423164,0.01677323,94493.0,94492.0,0.19862103]
[1735488423362,0.01777323,94493.0,94492.0,0.21441318]
[1735488423784,0.002171,94493.0,94492.0,0.22141318]
[1735488424310,0.002171,94493.0,94492.0,0.20662103]
[1735488426064,0.001171,94493.0,94492.0,0.20562103]
[1735488426477,0.000171,94493.0,94492.0,0.20262103]
[1735488426922,0.001171,94493.0,94492.0,0.21162103]
[1735488427116,0.01676967,94493.0,94492.0,0.25082103]
[1735488427318,0.01676967,94493.0,94492.0,0.39593184]
[1735488427501,0.01776967,94493.0,94492.0,0.40493184]
[1735488427921,0.01676967,94493.0,94492.0,0.49593184]
[1735488428518,0.01676967,94493.0,94492.0,0.49193184]
[1735488428809,0.01676967,94493.0,94492.0,0.49693184]
[1735488429218,0.01676967,94493.0,94492.0,0.49193184]
[1735488429663,0.01776967,94493.0,94492.0,0.49893184]
[1735488430126,0.01676967,94493.0,94492.0,0.49193184]
[1735488430259,0.01676967,94493.0,94492.0,0.50093184]
[1735488430459,0.01776967,94493.0,94492.0,0.36382103]
[1735488430662,0.01776967,94493.0,94492.0,0.20662103]
[1735488430940,0.01776967,94493.0,94492.0,0.30662103]
[1735488431162,0.01776967,94493.0,94492.0,0.31562103]
[1735488431402,0.01776967,94493.0,94492.0,0.30662103]
[1735488431695,0.01676967,94493.0,94492.0,0.29862103]
[1735488431857,0.01776967,94493.0,94492.0,0.34751184]
[1735488432165,0.01776967,94493.0,94492.0,0.35651184]
[1735488432438,0.01776967,94493.0,94492.0,0.34751184]
[1735488432694,0.01676967,94493.0,94492.0,0.23851184]
[1735488432929,0.01776967,94493.0,94492.0,0.34651184]
[1735488433428,0.01776967,94493.0,94492.0,0.20662103]
[1735488433631,0.01776967,94493.0,94492.0,0.30662103]
[1735488434002,0.001171,94493.0,94492.0,0.31562103]
[1735488435075,0.001171,94493.0,94492.0,0.41562103]
[1735488435248,0.001171,94493.0,94492.0,0.21562103]
[1735488435452,0.001171,94493.0,94492.0,0.13522103]
[1735488435652,0.27084,94493.0,94492.0,0.03123471]
[1735488435907,0.138946,94493.0,94492.0,0.03123471]
[1735488436120,0.106878,94493.0,94492.0,0.03123471]
[1735488436319,0.000171,94493.0,94492.0,0.02323471]
[1735488436850,0.001171,94493.0,94492.0,0.02923471]
[1735488437206,0.01777115,94493.0,94492.0,0.02923471]
[1735488437796,0.01777115,94493.0,94492.0,0.02023471]
[1735488438359,0.01777115,94493.0,94492.0,0.02923471]
[1735488439127,0.01677115,94493.0,94492.0,0.01423471]
[1735488439425,0.01677115,94493.0,94492.0,0.01623471]
[1735488443846,0.000171,94493.0,94492.0,0.01623471]
[1735488446579,0.28429475,94493.0,94492.0,0.01623471]
[1735488447224,0.30089559,94493.0,94492.0,0.01623471]
[1735488447625,0.01677184,94493.0,94492.0,0.01623471]
[1735488451441,0.13107713,94493.0,94492.0,0.01623471]
[1735488451621,0.09757184,94493.0,94492.0,0.01623471]
[1735488451830,0.85321684,94493.0,94492.0,0.01623471]
[1735488452020,0.88876984,94493.0,94492.0,0.01309227]
[1735488452220,0.86806984,94493.0,94492.0,0.01309227]
[1735488452847,0.83782784,94493.0,94492.0,0.01309227]
[1735488453285,1.15610886,94493.0,94492.0,0.01309227]
[1735488453953,1.13950802,94493.0,94492.0,0.01309227]